[Event "Titled Tuesday Blitz November 08 Early 2022"]
[White "Andrews, Todd"]
[Black "Tokhirjonova, Gulrukhbegim"]
[WhiteFideId "2012456"]
[BlackFideId "14203626"]
[WhiteElo "2447"]
[BlackElo "2236"]
[Result "0-1"]
[Round "10"]
[TimeControl "180+1"]
[Date "2022.11.09"]
[WhiteClock "0:00:05"]
[BlackClock "0:00:06"]

1. e4 {[%clk 0:03:00]}  e5 {[%clk 0:02:59]} 2. Nf3 {[%clk 0:03:00]}  Nc6 {[%clk 0:03:00]} 3. Bb5 {[%clk 0:02:57]}  a6 {[%clk 0:03:00]} 4. Ba4 {[%clk 0:02:58]}  Nf6 {[%clk 0:03:00]} 5. O-O {[%clk 0:02:58]}  Nxe4 {[%clk 0:02:59]} 6. d4 {[%clk 0:02:57]}  b5 {[%clk 0:03:00]} 7. Bb3 {[%clk 0:02:56]}  d5 {[%clk 0:03:01]} 8. dxe5 {[%clk 0:02:56]}  Be6 {[%clk 0:03:02]} 9. a4 {[%clk 0:02:51]}  b4 {[%clk 0:02:56]} 10. c3 {[%clk 0:02:42]}  Bc5 {[%clk 0:02:54]} 11. Qe2 {[%clk 0:02:26]}  O-O {[%clk 0:02:54]} 12. Nbd2 {[%clk 0:02:25]}  bxc3 {[%clk 0:02:50]} 13. bxc3 {[%clk 0:01:59]}  Nxc3 {[%clk 0:02:47]} 14. Qd3 {[%clk 0:01:46]}  d4 {[%clk 0:02:47]} 15. Bxe6 {[%clk 0:01:38]}  fxe6 {[%clk 0:02:48]} 16. Nb3 {[%clk 0:01:37]}  Ba7 {[%clk 0:02:41]} 17. Ng5 {[%clk 0:01:32]}  g6 {[%clk 0:02:11]} 18. Nxe6 {[%clk 0:01:24]}  Nxe5 {[%clk 0:02:09]} 19. Qh3 {[%clk 0:01:17]}  Qd5 {[%clk 0:01:54]} 20. Nxf8 {[%clk 0:01:13]}  Rxf8 {[%clk 0:01:55]} 21. Bh6 {[%clk 0:01:07]}  Rf5 {[%clk 0:01:42]} 22. Nd2 {[%clk 0:01:06]}  Bc5 {[%clk 0:01:19]} 23. Rae1 {[%clk 0:00:59]}  d3 {[%clk 0:01:17]} 24. Kh1 {[%clk 0:00:49]}  Ne2 {[%clk 0:01:06]} 25. f4 {[%clk 0:00:42]}  Nf7 {[%clk 0:01:00]} 26. Rf3 {[%clk 0:00:33]}  Nxh6 {[%clk 0:00:39]} 27. Rxd3 {[%clk 0:00:33]}  Nd4 {[%clk 0:00:25]} 28. Re8+ {[%clk 0:00:18]}  Kf7 {[%clk 0:00:24]} 29. Re5 {[%clk 0:00:15]}  Rxe5 {[%clk 0:00:20]} 30. fxe5 {[%clk 0:00:15]}  Kg7 {[%clk 0:00:19]} 31. Nf3 {[%clk 0:00:11]}  Qe4 {[%clk 0:00:18]} 32. Qg3 {[%clk 0:00:10]}  Nhf5 {[%clk 0:00:17]} 33. Qg5 {[%clk 0:00:07]}  Qxd3 {[%clk 0:00:15]} 34. Qf6+ {[%clk 0:00:07]}  Kg8 {[%clk 0:00:15]} 35. Qd8+ {[%clk 0:00:06]}  Bf8 {[%clk 0:00:15]} 36. h4 {[%clk 0:00:05]}  Qf1+ {[%clk 0:00:11]} 37. Ng1 {[%clk 0:00:05]}  Ne2 {[%clk 0:00:06]} 0-1


[Site "https://www.chess.com"]

[Event "Titled Tuesday Blitz November 08 Early 2022"]
[White "Antonova, Nadezhda"]
[Black "Chernov, Mikhail"]
[WhiteFideId "14700182"]
[BlackFideId "24143170"]
[WhiteElo "1813"]
[BlackElo "2113"]
[Result "1-0"]
[Round "10"]
[TimeControl "180+1"]
[Date "2022.11.09"]
[WhiteClock "0:00:22"]
[BlackClock "0:00:03"]

1. Nf3 {[%clk 0:02:59]}  c5 {[%clk 0:03:00]} 2. b3 {[%clk 0:02:58]}  Nc6 {[%clk 0:03:00]} 3. Bb2 {[%clk 0:02:56]}  d6 {[%clk 0:03:00]} 4. g3 {[%clk 0:02:51]}  e5 {[%clk 0:03:00]} 5. Bg2 {[%clk 0:02:51]}  g6 {[%clk 0:03:01]} 6. d3 {[%clk 0:02:42]}  Bg7 {[%clk 0:03:02]} 7. O-O {[%clk 0:02:36]}  Nge7 {[%clk 0:03:02]} 8. c4 {[%clk 0:02:34]}  O-O {[%clk 0:03:03]} 9. Qc1 {[%clk 0:02:33]}  f5 {[%clk 0:02:55]} 10. e3 {[%clk 0:02:29]}  h6 {[%clk 0:02:50]} 11. Rd1 {[%clk 0:02:25]}  Be6 {[%clk 0:02:49]} 12. d4 {[%clk 0:02:25]}  cxd4 {[%clk 0:02:47]} 13. exd4 {[%clk 0:02:24]}  e4 {[%clk 0:02:48]} 14. d5 {[%clk 0:02:21]}  exf3 {[%clk 0:02:37]} 15. Bxf3 {[%clk 0:02:20]}  Ne5 {[%clk 0:02:33]} 16. dxe6 {[%clk 0:02:06]}  Nxf3+ {[%clk 0:02:32]} 17. Kg2 {[%clk 0:02:05]}  Bxb2 {[%clk 0:02:11]} 18. Qxb2 {[%clk 0:02:05]}  Ng5 {[%clk 0:02:00]} 19. Re1 {[%clk 0:02:00]}  Qc8 {[%clk 0:01:59]} 20. Qe2 {[%clk 0:01:55]}  Qc6+ {[%clk 0:01:56]} 21. f3 {[%clk 0:01:51]}  Rae8 {[%clk 0:01:41]} 22. h4 {[%clk 0:01:45]}  Nh7 {[%clk 0:01:41]} 23. Nc3 {[%clk 0:01:43]}  d5 {[%clk 0:01:33]} 24. Nb5 {[%clk 0:01:25]}  dxc4 {[%clk 0:01:26]} 25. bxc4 {[%clk 0:01:25]}  a6 {[%clk 0:01:03]} 26. Nd4 {[%clk 0:01:25]}  Qc5 {[%clk 0:01:04]} 27. Nb3 {[%clk 0:01:24]}  Qc8 {[%clk 0:00:58]} 28. Rac1 {[%clk 0:01:16]}  Nc6 {[%clk 0:00:58]} 29. Nc5 {[%clk 0:01:09]}  Rf6 {[%clk 0:00:48]} 30. Qb2 {[%clk 0:01:04]}  Nd8 {[%clk 0:00:28]} 31. Qb4 {[%clk 0:00:27]}  Nxe6 {[%clk 0:00:25]} 32. Nxb7 {[%clk 0:00:26]}  Qb8 {[%clk 0:00:12]} 33. c5 {[%clk 0:00:26]}  Nef8 {[%clk 0:00:04]} 34. Qc4+ {[%clk 0:00:23]}  Kg7 {[%clk 0:00:04]} 35. Nd6 {[%clk 0:00:23]}  Rxe1 {[%clk 0:00:03]} 36. Rxe1 {[%clk 0:00:24]}  Qc7 {[%clk 0:00:03]} 37. Ne8+ {[%clk 0:00:22]} 1-0


[Site "https://www.chess.com"]

[Event "Titled Tuesday Blitz November 08 Early 2022"]
[White "Arabidze, Meri"]
[Black "Gareyev, Timur"]
[WhiteFideId "13604040"]
[BlackFideId "14200937"]
[WhiteElo "2403"]
[BlackElo "2552"]
[Result "0-1"]
[Round "10"]
[TimeControl "180+1"]
[Date "2022.11.09"]
[WhiteClock "0:00:05"]
[BlackClock "0:00:07"]

1. Nf3 {[%clk 0:02:57]}  Nf6 {[%clk 0:02:46]} 2. d4 {[%clk 0:02:57]}  c5 {[%clk 0:02:19]} 3. d5 {[%clk 0:02:56]}  b5 {[%clk 0:02:15]} 4. e4 {[%clk 0:02:52]}  Nxe4 {[%clk 0:02:13]} 5. Bd3 {[%clk 0:02:52]}  Qa5+ {[%clk 0:02:08]} 6. Nbd2 {[%clk 0:02:51]}  Nd6 {[%clk 0:02:04]} 7. O-O {[%clk 0:02:47]}  c4 {[%clk 0:02:04]} 8. Be2 {[%clk 0:02:26]}  Bb7 {[%clk 0:02:03]} 9. Nd4 {[%clk 0:02:21]}  Qb6 {[%clk 0:01:58]} 10. c3 {[%clk 0:02:16]}  Bxd5 {[%clk 0:01:54]} 11. a4 {[%clk 0:02:16]}  a6 {[%clk 0:01:45]} 12. Bf3 {[%clk 0:02:05]}  Qb7 {[%clk 0:01:38]} 13. Re1 {[%clk 0:01:52]}  e6 {[%clk 0:01:34]} 14. Bxd5 {[%clk 0:01:15]}  Qxd5 {[%clk 0:01:35]} 15. N2f3 {[%clk 0:01:16]}  Be7 {[%clk 0:01:16]} 16. axb5 {[%clk 0:01:07]}  axb5 {[%clk 0:01:10]} 17. Nxb5 {[%clk 0:00:38]}  Qxd1 {[%clk 0:00:55]} 18. Rxa8 {[%clk 0:00:38]}  Qxe1+ {[%clk 0:00:48]} 19. Nxe1 {[%clk 0:00:39]}  O-O {[%clk 0:00:45]} 20. Na3 {[%clk 0:00:28]}  Nc6 {[%clk 0:00:38]} 21. Ra4 {[%clk 0:00:27]}  Ne5 {[%clk 0:00:30]} 22. Bf4 {[%clk 0:00:25]}  Nd3 {[%clk 0:00:27]} 23. Nxd3 {[%clk 0:00:22]}  cxd3 {[%clk 0:00:26]} 24. Rd4 {[%clk 0:00:21]}  Nf5 {[%clk 0:00:05]} 25. Rxd7 {[%clk 0:00:21]}  g5 {[%clk 0:00:05]} 26. Bd2 {[%clk 0:00:15]}  Rb8 {[%clk 0:00:04]} 27. Bc1 {[%clk 0:00:05]}  Bxa3 {[%clk 0:00:03]} 28. Rxd3 {[%clk 0:00:03]}  Bxb2 {[%clk 0:00:03]} 29. Bxg5 {[%clk 0:00:03]}  Rc8 {[%clk 0:00:03]} 30. g4 {[%clk 0:00:02]}  Ng7 {[%clk 0:00:02]} 31. Bf6 {[%clk 0:00:03]}  Ne8 {[%clk 0:00:02]} 32. Be5 {[%clk 0:00:03]}  f6 {[%clk 0:00:03]} 33. Bd4 {[%clk 0:00:03]}  e5 {[%clk 0:00:03]} 34. Be3 {[%clk 0:00:03]}  Bxc3 {[%clk 0:00:04]} 35. Rd7 {[%clk 0:00:03]}  Ng7 {[%clk 0:00:04]} 36. Bh6 {[%clk 0:00:03]}  Ne6 {[%clk 0:00:04]} 37. h3 {[%clk 0:00:03]}  Bd4 {[%clk 0:00:03]} 38. Kg2 {[%clk 0:00:03]}  Rc6 {[%clk 0:00:02]} 39. Re7 {[%clk 0:00:03]}  Ng5 {[%clk 0:00:01]} 40. Re8+ {[%clk 0:00:04]}  Kf7 {[%clk 0:00:01]} 41. Rf8+ {[%clk 0:00:04]}  Kg6 {[%clk 0:00:02]} 42. Bxg5 {[%clk 0:00:04]}  Kxg5 {[%clk 0:00:02]} 43. Rg8+ {[%clk 0:00:05]}  Kf4 {[%clk 0:00:03]} 44. Rg7 {[%clk 0:00:05]}  e4 {[%clk 0:00:04]} 45. Rxh7 {[%clk 0:00:05]}  Rc2 {[%clk 0:00:04]} 46. Rf7 {[%clk 0:00:05]}  Rxf2+ {[%clk 0:00:05]} 47. Kh1 {[%clk 0:00:06]}  Rf3 {[%clk 0:00:06]} 48. Kg2 {[%clk 0:00:06]}  Rf2+ {[%clk 0:00:06]} 49. Kh1 {[%clk 0:00:05]}  Kg3 {[%clk 0:00:07]} 50. Kg1 {[%clk 0:00:05]}  Rf3+ {[%clk 0:00:07]} 0-1


[Site "https://www.chess.com"]

[Event "Titled Tuesday Blitz November 08 Early 2022"]
[White "Artemenko, Oleg"]
[Black "Weetik, Vjacheslav"]
[WhiteFideId "14201798"]
[BlackFideId "4153472"]
[WhiteElo "2287"]
[BlackElo "2469"]
[Result "0-1"]
[Round "10"]
[TimeControl "180+1"]
[Date "2022.11.08"]
[WhiteClock "0:00:20"]
[BlackClock "0:01:02"]

1. d4 {[%clk 0:03:00]}  d5 {[%clk 0:02:59]} 2. Nc3 {[%clk 0:03:01]}  Nf6 {[%clk 0:02:59]} 3. Bf4 {[%clk 0:03:01]}  c5 {[%clk 0:02:59]} 4. e3 {[%clk 0:03:01]}  cxd4 {[%clk 0:02:59]} 5. exd4 {[%clk 0:03:02]}  a6 {[%clk 0:03:00]} 6. Nf3 {[%clk 0:03:01]}  Nc6 {[%clk 0:03:00]} 7. Ne5 {[%clk 0:03:01]}  Bd7 {[%clk 0:03:00]} 8. Be2 {[%clk 0:02:58]}  e6 {[%clk 0:02:56]} 9. O-O {[%clk 0:02:58]}  Qb6 {[%clk 0:02:55]} 10. Nxc6 {[%clk 0:02:52]}  Bxc6 {[%clk 0:02:54]} 11. Rb1 {[%clk 0:02:51]}  Be7 {[%clk 0:02:49]} 12. a3 {[%clk 0:02:46]}  O-O {[%clk 0:02:49]} 13. Bd3 {[%clk 0:02:46]}  Ne4 {[%clk 0:02:42]} 14. Bxe4 {[%clk 0:02:45]}  dxe4 {[%clk 0:02:42]} 15. Be3 {[%clk 0:02:45]}  Qa5 {[%clk 0:02:38]} 16. Ne2 {[%clk 0:02:38]}  Rad8 {[%clk 0:02:34]} 17. Ng3 {[%clk 0:02:37]}  f5 {[%clk 0:02:31]} 18. Nh5 {[%clk 0:02:31]}  g5 {[%clk 0:02:18]} 19. h4 {[%clk 0:01:59]}  f4 {[%clk 0:02:15]} 20. Bd2 {[%clk 0:01:58]}  Qf5 {[%clk 0:02:03]} 21. hxg5 {[%clk 0:01:56]}  Bxg5 {[%clk 0:01:57]} 22. g4 {[%clk 0:01:51]}  Qd5 {[%clk 0:01:52]} 23. Bc3 {[%clk 0:01:41]}  e5 {[%clk 0:01:41]} 24. dxe5 {[%clk 0:01:36]}  Qe6 {[%clk 0:01:41]} 25. Qe1 {[%clk 0:00:44]}  Qxg4+ {[%clk 0:01:39]} 26. Ng3 {[%clk 0:00:45]}  e3 {[%clk 0:01:10]} 27. e6 {[%clk 0:00:20]}  Qf3 {[%clk 0:01:02]} 0-1


[Site "https://www.chess.com"]

[Event "Titled Tuesday Blitz November 08 Early 2022"]
[White "Averjanov, Alexey"]
[Black "Matinian, Nikita"]
[WhiteFideId "14109867"]
[BlackFideId "24129100"]
[WhiteElo "2589"]
[BlackElo "2422"]
[Result "0-1"]
[Round "10"]
[TimeControl "180+1"]
[Date "2022.11.09"]
[WhiteClock "0:01:01"]
[BlackClock "0:00:43"]

1. d4 {[%clk 0:02:56]}  Nf6 {[%clk 0:02:59]} 2. c4 {[%clk 0:02:56]}  e6 {[%clk 0:03:00]} 3. Nf3 {[%clk 0:02:56]}  Bb4+ {[%clk 0:03:00]} 4. Nbd2 {[%clk 0:02:55]}  O-O {[%clk 0:02:57]} 5. g3 {[%clk 0:02:55]}  b6 {[%clk 0:02:56]} 6. Bg2 {[%clk 0:02:55]}  Bb7 {[%clk 0:02:57]} 7. O-O {[%clk 0:02:55]}  d5 {[%clk 0:02:57]} 8. b3 {[%clk 0:02:54]}  Bc3 {[%clk 0:02:53]} 9. Rb1 {[%clk 0:02:54]}  c5 {[%clk 0:02:48]} 10. e3 {[%clk 0:02:51]}  Nc6 {[%clk 0:02:45]} 11. dxc5 {[%clk 0:02:46]}  bxc5 {[%clk 0:02:46]} 12. cxd5 {[%clk 0:02:46]}  exd5 {[%clk 0:02:46]} 13. Bb2 {[%clk 0:02:46]}  d4 {[%clk 0:02:40]} 14. Nc4 {[%clk 0:02:36]}  Ne4 {[%clk 0:02:18]} 15. exd4 {[%clk 0:02:29]}  cxd4 {[%clk 0:02:06]} 16. Re1 {[%clk 0:02:16]}  Re8 {[%clk 0:01:52]} 17. a3 {[%clk 0:02:06]}  Qf6 {[%clk 0:01:35]} 18. Qd3 {[%clk 0:01:59]}  Bxb2 {[%clk 0:01:31]} 19. Rxb2 {[%clk 0:01:51]}  Nc5 {[%clk 0:01:24]} 20. Rxe8+ {[%clk 0:01:48]}  Rxe8 {[%clk 0:01:24]} 21. Qd1 {[%clk 0:01:40]}  d3 {[%clk 0:01:17]} 22. Rd2 {[%clk 0:01:36]}  a5 {[%clk 0:01:09]} 23. Ne1 {[%clk 0:01:23]}  Qc3 {[%clk 0:01:00]} 24. Bf1 {[%clk 0:01:18]}  Nd4 {[%clk 0:00:58]} 25. Nd6 {[%clk 0:01:14]}  Rxe1 {[%clk 0:00:56]} 26. Qh5 {[%clk 0:01:06]}  Nf3+ {[%clk 0:00:50]} 27. Kg2 {[%clk 0:01:02]}  Nxd2+ {[%clk 0:00:48]} 28. Nxb7 {[%clk 0:01:01]}  Nxb7 {[%clk 0:00:43]} 0-1


[Site "https://www.chess.com"]

[Event "Titled Tuesday Blitz November 08 Early 2022"]
[White "Baches Garcia, Guillermo"]
[Black "Gonzalez Vega, Alejandro"]
[WhiteFideId "2209764"]
[BlackFideId "3510042"]
[WhiteElo "2445"]
[BlackElo "2291"]
[Result "1-0"]
[Round "10"]
[TimeControl "180+1"]
[Date "2022.11.09"]
[WhiteClock "0:00:47"]
[BlackClock "0:00:04"]

1. e4 {[%clk 0:03:00]}  c5 {[%clk 0:02:59]} 2. Nf3 {[%clk 0:03:01]}  a6 {[%clk 0:02:56]} 3. c4 {[%clk 0:03:00]}  d6 {[%clk 0:02:55]} 4. Nc3 {[%clk 0:03:00]}  Nf6 {[%clk 0:02:55]} 5. d4 {[%clk 0:03:00]}  cxd4 {[%clk 0:02:55]} 6. Nxd4 {[%clk 0:03:01]}  e6 {[%clk 0:02:55]} 7. Be2 {[%clk 0:03:01]}  Qc7 {[%clk 0:02:55]} 8. O-O {[%clk 0:03:02]}  Nbd7 {[%clk 0:02:56]} 9. Be3 {[%clk 0:03:01]}  Be7 {[%clk 0:02:56]} 10. a4 {[%clk 0:02:58]}  b6 {[%clk 0:02:56]} 11. a5 {[%clk 0:02:57]}  bxa5 {[%clk 0:02:48]} 12. Nb3 {[%clk 0:02:56]}  O-O {[%clk 0:02:23]} 13. Nxa5 {[%clk 0:02:54]}  Rb8 {[%clk 0:02:14]} 14. Qd2 {[%clk 0:02:42]}  Ne5 {[%clk 0:02:00]} 15. f3 {[%clk 0:02:36]}  Rd8 {[%clk 0:01:57]} 16. Rfc1 {[%clk 0:02:33]}  Nc6 {[%clk 0:01:22]} 17. Nd5 {[%clk 0:02:13]}  exd5 {[%clk 0:00:29]} 18. cxd5 {[%clk 0:02:12]}  Bd7 {[%clk 0:00:27]} 19. Nxc6 {[%clk 0:01:57]}  Bxc6 {[%clk 0:00:25]} 20. Rxc6 {[%clk 0:01:57]}  Qb7 {[%clk 0:00:25]} 21. Rb6 {[%clk 0:01:54]}  Qc7 {[%clk 0:00:22]} 22. Rbxa6 {[%clk 0:01:47]}  Nd7 {[%clk 0:00:21]} 23. b4 {[%clk 0:01:42]}  Bf6 {[%clk 0:00:19]} 24. Rc1 {[%clk 0:01:34]}  Qb7 {[%clk 0:00:18]} 25. b5 {[%clk 0:01:19]}  Nc5 {[%clk 0:00:14]} 26. Bxc5 {[%clk 0:01:15]}  dxc5 {[%clk 0:00:14]} 27. Rc6 {[%clk 0:01:15]}  Bd4+ {[%clk 0:00:13]} 28. Kh1 {[%clk 0:01:15]}  Qe7 {[%clk 0:00:13]} 29. Qf4 {[%clk 0:01:09]}  h6 {[%clk 0:00:13]} 30. Rc7 {[%clk 0:01:08]}  Qf6 {[%clk 0:00:12]} 31. Qxf6 {[%clk 0:01:07]}  gxf6 {[%clk 0:00:13]} 32. g3 {[%clk 0:00:59]}  Rb6 {[%clk 0:00:12]} 33. Rc6 {[%clk 0:00:58]}  Rdb8 {[%clk 0:00:10]} 34. Rc2 {[%clk 0:00:57]}  R6b7 {[%clk 0:00:07]} 35. Ra2 {[%clk 0:00:56]}  Kg7 {[%clk 0:00:06]} 36. Kg2 {[%clk 0:00:57]}  Kg6 {[%clk 0:00:05]} 37. h4 {[%clk 0:00:55]}  h5 {[%clk 0:00:05]} 38. f4 {[%clk 0:00:53]}  Rxb5 {[%clk 0:00:03]} 39. Bxb5 {[%clk 0:00:50]}  Rxb5 {[%clk 0:00:04]} 40. e5 {[%clk 0:00:51]}  Rb1 {[%clk 0:00:03]} 41. Rxf6+ {[%clk 0:00:49]}  Kg7 {[%clk 0:00:04]} 42. Ra7 {[%clk 0:00:48]}  Rg1+ {[%clk 0:00:04]} 43. Kh2 {[%clk 0:00:49]}  Rf1 {[%clk 0:00:03]} 44. Rfxf7+ {[%clk 0:00:47]}  Kg8 {[%clk 0:00:03]} 45. Rfd7 {[%clk 0:00:47]}  Rf2+ {[%clk 0:00:04]} 46. Kh3 {[%clk 0:00:47]} 1-0


[Site "https://www.chess.com"]

[Event "Titled Tuesday Blitz November 08 Early 2022"]
[White "Bacrot, Etienne"]
[Black "Bluebaum, Matthias"]
[WhiteFideId "605506"]
[BlackFideId "24651516"]
[WhiteElo "2666"]
[BlackElo "2633"]
[Result "1-0"]
[Round "10"]
[TimeControl "180+1"]
[Date "2022.11.08"]
[WhiteClock "0:00:22"]
[BlackClock "0:00:07"]

1. e4 {[%clk 0:03:00]}  e6 {[%clk 0:02:59]} 2. Nf3 {[%clk 0:03:00]}  d5 {[%clk 0:03:00]} 3. exd5 {[%clk 0:03:01]}  exd5 {[%clk 0:03:01]} 4. d4 {[%clk 0:03:01]}  Nc6 {[%clk 0:03:02]} 5. Bb5 {[%clk 0:03:01]}  a6 {[%clk 0:03:01]} 6. Bxc6+ {[%clk 0:03:01]}  bxc6 {[%clk 0:03:02]} 7. O-O {[%clk 0:03:01]}  Bd6 {[%clk 0:03:02]} 8. Re1+ {[%clk 0:03:01]}  Ne7 {[%clk 0:03:02]} 9. b3 {[%clk 0:02:59]}  O-O {[%clk 0:03:00]} 10. Ba3 {[%clk 0:02:59]}  Bg4 {[%clk 0:02:58]} 11. h3 {[%clk 0:02:56]}  Bh5 {[%clk 0:02:57]} 12. Bxd6 {[%clk 0:02:52]}  Qxd6 {[%clk 0:02:58]} 13. Nbd2 {[%clk 0:02:52]}  c5 {[%clk 0:02:54]} 14. dxc5 {[%clk 0:02:42]}  Qxc5 {[%clk 0:02:55]} 15. Re5 {[%clk 0:02:40]}  Bg6 {[%clk 0:02:50]} 16. c4 {[%clk 0:02:39]}  Rad8 {[%clk 0:02:44]} 17. Qe2 {[%clk 0:02:32]}  Nc6 {[%clk 0:01:49]} 18. Rxd5 {[%clk 0:02:31]}  Rxd5 {[%clk 0:01:50]} 19. cxd5 {[%clk 0:02:32]}  Qxd5 {[%clk 0:01:51]} 20. Qxa6 {[%clk 0:02:30]}  Nb4 {[%clk 0:01:51]} 21. Qc4 {[%clk 0:02:14]}  Qd6 {[%clk 0:01:48]} 22. Ne4 {[%clk 0:01:59]}  Qb6 {[%clk 0:01:45]} 23. Nc5 {[%clk 0:01:52]}  Rd8 {[%clk 0:01:30]} 24. Ne5 {[%clk 0:01:29]}  Rd2 {[%clk 0:00:59]} 25. Nxg6 {[%clk 0:01:14]}  hxg6 {[%clk 0:01:00]} 26. Re1 {[%clk 0:01:13]}  Qf6 {[%clk 0:00:38]} 27. Re8+ {[%clk 0:00:30]}  Kh7 {[%clk 0:00:37]} 28. Ne4 {[%clk 0:00:31]}  Rd1+ {[%clk 0:00:11]} 29. Kh2 {[%clk 0:00:30]}  Qf4+ {[%clk 0:00:05]} 30. g3 {[%clk 0:00:30]}  Qc1 {[%clk 0:00:05]} 31. Qxc1 {[%clk 0:00:22]}  Rxc1 {[%clk 0:00:06]} 32. Ng5+ {[%clk 0:00:22]}  Kh6 {[%clk 0:00:07]} 33. Nxf7+ {[%clk 0:00:22]}  Kh5 {[%clk 0:00:07]} 34. Rh8# {[%clk 0:00:22]} 1-0


[Site "https://www.chess.com"]

[Event "Titled Tuesday Blitz November 08 Early 2022"]
[White "Balkum, Alexander"]
[Black "Simonovic, Miroslav"]
[WhiteFideId "2005069"]
[BlackFideId "919152"]
[WhiteElo "2339"]
[BlackElo "2043"]
[Result "0-1"]
[Round "10"]
[TimeControl "180+1"]
[Date "2022.11.09"]
[WhiteClock "0:00:06"]
[BlackClock "0:00:46"]

1. e4 {[%clk 0:03:00]}  c5 {[%clk 0:02:59]} 2. Nf3 {[%clk 0:03:00]}  Nc6 {[%clk 0:03:00]} 3. d4 {[%clk 0:03:01]}  cxd4 {[%clk 0:03:01]} 4. Nxd4 {[%clk 0:03:01]}  a6 {[%clk 0:03:01]} 5. Nc3 {[%clk 0:02:58]}  e5 {[%clk 0:03:01]} 6. Nf5 {[%clk 0:02:56]}  d6 {[%clk 0:03:01]} 7. g3 {[%clk 0:02:52]}  Nf6 {[%clk 0:03:00]} 8. Bg5 {[%clk 0:02:51]}  Be7 {[%clk 0:02:59]} 9. Bxf6 {[%clk 0:02:45]}  gxf6 {[%clk 0:02:59]} 10. Ne3 {[%clk 0:02:40]}  Qa5 {[%clk 0:02:46]} 11. Bg2 {[%clk 0:02:35]}  Nd4 {[%clk 0:02:31]} 12. O-O {[%clk 0:02:34]}  f5 {[%clk 0:02:21]} 13. exf5 {[%clk 0:02:32]}  Nxf5 {[%clk 0:02:22]} 14. Nxf5 {[%clk 0:02:30]}  Bxf5 {[%clk 0:02:23]} 15. Bxb7 {[%clk 0:02:29]}  Rb8 {[%clk 0:02:22]} 16. Bc6+ {[%clk 0:02:25]}  Kf8 {[%clk 0:02:19]} 17. Qh5 {[%clk 0:02:06]}  Bg6 {[%clk 0:01:56]} 18. Qh6+ {[%clk 0:02:05]}  Kg8 {[%clk 0:01:57]} 19. h4 {[%clk 0:01:31]}  Bf8 {[%clk 0:01:53]} 20. Qg5 {[%clk 0:01:16]}  h6 {[%clk 0:01:39]} 21. Qg4 {[%clk 0:01:14]}  h5 {[%clk 0:01:36]} 22. Qf3 {[%clk 0:01:06]}  Rxb2 {[%clk 0:01:27]} 23. Nd5 {[%clk 0:00:37]}  Bg7 {[%clk 0:01:19]} 24. Be8 {[%clk 0:00:22]}  e4 {[%clk 0:01:12]} 25. Ne7+ {[%clk 0:00:15]}  Kf8 {[%clk 0:01:11]} 26. Nxg6+ {[%clk 0:00:15]}  Kxe8 {[%clk 0:01:12]} 27. Qxe4+ {[%clk 0:00:15]}  Kd7 {[%clk 0:01:02]} 28. Qe7+ {[%clk 0:00:14]}  Kc6 {[%clk 0:01:02]} 29. Nxh8 {[%clk 0:00:14]}  Bxh8 {[%clk 0:01:03]} 30. Qxf7 {[%clk 0:00:13]}  Rxc2 {[%clk 0:01:00]} 31. Rad1 {[%clk 0:00:11]}  Qc5 {[%clk 0:00:56]} 32. Qe8+ {[%clk 0:00:11]}  Kc7 {[%clk 0:00:54]} 33. Qxh8 {[%clk 0:00:12]}  Rc3 {[%clk 0:00:50]} 34. Qh7+ {[%clk 0:00:08]}  Kc6 {[%clk 0:00:51]} 35. Rd3 {[%clk 0:00:07]}  Rc4 {[%clk 0:00:49]} 36. Rfd1 {[%clk 0:00:06]}  a5 {[%clk 0:00:46]} 0-1


[Site "https://www.chess.com"]

[Event "Titled Tuesday Blitz November 08 Early 2022"]
[White "Biastoch, Bennet"]
[Black "Timofeev, Artyom"]
[WhiteFideId "12939889"]
[BlackFideId "4140419"]
[WhiteElo "2221"]
[BlackElo "2586"]
[Result "0-1"]
[Round "10"]
[TimeControl "180+1"]
[Date "2022.11.09"]
[WhiteClock "0:01:16"]
[BlackClock "0:01:50"]

1. e4 {[%clk 0:02:57]}  c5 {[%clk 0:03:00]} 2. Nf3 {[%clk 0:02:57]}  Nc6 {[%clk 0:03:00]} 3. d4 {[%clk 0:02:58]}  cxd4 {[%clk 0:03:00]} 4. Nxd4 {[%clk 0:02:58]}  e5 {[%clk 0:03:01]} 5. Nb5 {[%clk 0:02:58]}  a6 {[%clk 0:03:01]} 6. Nd6+ {[%clk 0:02:58]}  Bxd6 {[%clk 0:03:01]} 7. Qxd6 {[%clk 0:02:58]}  Qe7 {[%clk 0:03:02]} 8. Qd1 {[%clk 0:02:54]}  Nf6 {[%clk 0:03:01]} 9. Nc3 {[%clk 0:02:53]}  d6 {[%clk 0:03:01]} 10. Bg5 {[%clk 0:02:53]}  Be6 {[%clk 0:03:00]} 11. Be2 {[%clk 0:02:51]}  O-O {[%clk 0:02:58]} 12. O-O {[%clk 0:02:50]}  Rfd8 {[%clk 0:02:57]} 13. Nd5 {[%clk 0:02:45]}  Bxd5 {[%clk 0:02:57]} 14. exd5 {[%clk 0:02:46]}  Nb8 {[%clk 0:02:57]} 15. c4 {[%clk 0:02:44]}  Nbd7 {[%clk 0:02:57]} 16. b4 {[%clk 0:02:42]}  h6 {[%clk 0:02:57]} 17. Bxf6 {[%clk 0:02:37]}  Nxf6 {[%clk 0:02:54]} 18. Bd3 {[%clk 0:02:36]}  e4 {[%clk 0:02:53]} 19. Re1 {[%clk 0:02:36]}  Re8 {[%clk 0:02:52]} 20. Bxe4 {[%clk 0:02:21]}  Nxe4 {[%clk 0:02:51]} 21. f3 {[%clk 0:02:21]}  Qc7 {[%clk 0:02:51]} 22. fxe4 {[%clk 0:01:48]}  Qxc4 {[%clk 0:02:51]} 23. Qf3 {[%clk 0:01:49]}  Qxb4 {[%clk 0:02:49]} 24. Rab1 {[%clk 0:01:47]}  Qd4+ {[%clk 0:02:48]} 25. Kh1 {[%clk 0:01:44]}  Re7 {[%clk 0:02:40]} 26. h3 {[%clk 0:01:41]}  Rae8 {[%clk 0:02:40]} 27. a3 {[%clk 0:01:37]}  Rxe4 {[%clk 0:02:30]} 28. Rxe4 {[%clk 0:01:37]}  Qxe4 {[%clk 0:02:30]} 29. Qxe4 {[%clk 0:01:37]}  Rxe4 {[%clk 0:02:29]} 30. Rxb7 {[%clk 0:01:38]}  Ra4 {[%clk 0:02:23]} 31. Rb6 {[%clk 0:01:37]}  Kf8 {[%clk 0:02:19]} 32. Rxd6 {[%clk 0:01:36]}  Ke7 {[%clk 0:02:20]} 33. Rb6 {[%clk 0:01:37]}  Rxa3 {[%clk 0:02:20]} 34. Kh2 {[%clk 0:01:37]}  a5 {[%clk 0:02:18]} 35. Ra6 {[%clk 0:01:37]}  a4 {[%clk 0:02:19]} 36. Kg1 {[%clk 0:01:34]}  Ra2 {[%clk 0:02:18]} 37. Kh2 {[%clk 0:01:34]}  Ra3 {[%clk 0:02:18]} 38. Kg1 {[%clk 0:01:34]}  h5 {[%clk 0:02:18]} 39. h4 {[%clk 0:01:33]}  f6 {[%clk 0:02:12]} 40. Kh2 {[%clk 0:01:33]}  g5 {[%clk 0:02:09]} 41. hxg5 {[%clk 0:01:31]}  fxg5 {[%clk 0:02:10]} 42. Rg6 {[%clk 0:01:32]}  g4 {[%clk 0:02:06]} 43. Rg5 {[%clk 0:01:32]}  Kd6 {[%clk 0:02:04]} 44. Rxh5 {[%clk 0:01:32]}  Rd3 {[%clk 0:02:00]} 45. Rh4 {[%clk 0:01:26]}  g3+ {[%clk 0:01:54]} 46. Kh3 {[%clk 0:01:25]}  a3 {[%clk 0:01:54]} 47. Ra4 {[%clk 0:01:25]}  Kxd5 {[%clk 0:01:54]} 48. Kg4 {[%clk 0:01:25]}  Kc5 {[%clk 0:01:54]} 49. Kf4 {[%clk 0:01:24]}  Kb5 {[%clk 0:01:54]} 50. Ra8 {[%clk 0:01:23]}  Kb4 {[%clk 0:01:52]} 51. Rb8+ {[%clk 0:01:22]}  Kc3 {[%clk 0:01:51]} 52. Rc8+ {[%clk 0:01:17]}  Kb2 {[%clk 0:01:51]} 53. Rb8+ {[%clk 0:01:17]}  Rb3 {[%clk 0:01:50]} 54. Ra8 {[%clk 0:01:17]}  a2 {[%clk 0:01:50]} 55. Kg4 {[%clk 0:01:16]}  a1=Q {[%clk 0:01:50]} 0-1


[Site "https://www.chess.com"]